[Event "Croatian 1A League 2022"]
[Site "Porec"]
[Date "2022.09.27"]
[Round "4.10"]
[White "Ostovic, Matija"]
[Black "Fucak, Emilio Milko"]
[Result "0-1"]
[ECO "C03"]
[WhiteElo "2386"]
[BlackElo "2187"]
[Annotator "TA"]
[PlyCount "102"]
[EventDate "2022.09.24"]
[EventType "team-tourn"]
[EventCountry "CRO"]
[SourceTitle "playchess.com"]
[Source "ChessBase"]
[SourceQuality "1"]
[TimeControl "40/5400+30:1800+30"]

{[%evp 11,102,13,13,13,18,18,16,11,18,18,14,18,14,20,35,22,45,18,14,15,15,0,51,33,34,30,54,0,0,-25,-31,-21,-39,-33,-26,-111,-106,-113,-111,-102,-107,-120,-110,-135,-126,-149,-113,-112,-87,-108,-108,-190,-142,-207,-188,-190,-148,-244,-229,-264,-248,-295,-275,-311,-312,-309,-293,-293,-284,-357,-338,-359,-359,-359,-359,-443,-419,-502,-472,-29968,-6693,-29990,-29991,-29991,-29974,-29972,-29973,-29975,-29976,-5489,-2256,-1459,-1367]} 1. e4 {[%emt 0:00:03]} e6 {[%emt 0:00:06]} 2. d4 {[%emt 0:00:13]} d5 {[%emt 0:00:05]} 3. Nd2 {[%emt 0:00:04]} Be7 {[%emt 0:00:10]} 4. Ngf3 {[%emt 0:00:44]} Nf6 {[%emt 0:00:13]} 5. Bd3 {[%emt 0:00:17]} c5 {[%emt 0:00:51]} 6. e5 {[%emt 0:00:07]} Nfd7 {[%emt 0:00:09]} 7. c3 {[%emt 0:00:15] C03: French Tarrasch: Unusual Black 3rd moves.} b6 {[%emt 0:00:37]} 8. O-O {[%emt 0:01:30]} Ba6 {[%emt 0:00:30]} 9. Bxa6 {[%emt 0:05:12] The position is equal.} Nxa6 {[%emt 0:00:02]} 10. Ne1 {[%emt 0:00:18][%cal Bf3e1,Be1d3,Bd3f4][%mdl 32]} b5 {[%emt 0:02:54] [#]} 11. Nd3 $146 {[%emt 0:04:16]} ({Predecessor:} 11. Qg4 O-O 12. Ndf3 Kh8 13. Nd3 Rc8 14. Nf4 Nc7 15. Nh5 Rg8 16. Ng5 Bxg5 17. Bxg5 {1-0 (37) Lagno,K (2547)-Hoang,T (2439) Riadh 2017}) 11... O-O {[%emt 0:13:37]} 12. Qg4 {[%emt 0:01:05]} Nc7 {[%emt 0:10:15]} 13. Nf3 {[%emt 0:02:59]} Kh8 {[%emt 0:08:21]} 14. Qh5 {[%emt 0:06:49]} c4 {[%emt 0:04:30]} 15. Nf4 {[%emt 0:02:14]} Qe8 {[%emt 0:01:47]} 16. Re1 {[%emt 0:10:57]} Rg8 {[%emt 0:01:42]} (16... a5 $11) 17. h4 {[%emt 0:08:04]} g6 {[%emt 0:08:33]} 18. Qg4 {[%emt 0:01:42]} a5 {[%emt 0:00:11]} 19. Ng5 {[%emt 0:05:28]} (19. a3 $14) 19... h6 {[%emt 0:03:09]} 20. Ngxe6 {[%emt 0:04:58]} fxe6 {[%emt 0:08:39]} 21. Nxe6 {[%emt 0:00:18]} Nxe6 {[%emt 0:00:13]} 22. Qxe6 {[%emt 0:00:15]} Rd8 {[%emt 0:05:03]} (22... Bxh4 23. Qxd5 Rf8 24. g3 $14) 23. a4 {[%emt 0:20:59] [#]} (23. Bxh6 $11 {keeps the balance.} Nf8 24. Qg4) 23... Nf8 $1 $17 {[%emt 0:01:06][%cal Bd7f8,Bf8h7,Bh7f6][%mdl 32]} (23... Bxh4 24. Qh3 g5 25. axb5 $16) 24. Qh3 {[%emt 0:04:31]} h5 {[%emt 0:07:15]} (24... bxa4 $6 25. Bxh6 Rb8 26. Re2 $11) 25. axb5 {[%emt 0:00:40]} Qxb5 {[%emt 0:00:03]} 26. e6 {[%emt 0:00:19]} Nh7 {[%emt 0:04:57]} 27. Bf4 {[%emt 0:00:37]} Nf6 {[%emt 0:00:45]} (27... Qxb2 28. Rxa5 Nf6 29. Be5 $14) 28. Bg5 {[%emt 0:09:18]} Rgf8 {[%emt 0:00:57]} (28... Qxb2 29. Rab1 Qc2 30. Rec1 $17) 29. Qg3 {[%emt 0:00:35]} Rde8 {[%emt 0:03:32]} (29... Qxb2 30. Rab1 Qc2 31. Rb7 $15) 30. Re2 {[%emt 0:05:05]} a4 {[%emt 0:03:18]} 31. Rae1 {[%emt 0:00:52]} (31. Qc7 $17 {might work better.}) 31... Qc6 {[%emt 0:01:44]} ({Better is} 31... Kh7 $19 32. f3 Qc6) 32. f3 {[%emt 0:03:10] Prevents Ne4.} (32. Bh6 $17 Rg8 33. f3) 32... Kh7 {[%emt 0:00:35]} 33. Qe5 {[%emt 0:00:59]} Ng8 {[%emt 0:02:17] White must now prevent ...Bd6.} 34. Qe3 {[%emt 0:01:02]} (34. g4 $17) 34... Qd6 $19 {[%emt 0:02:14]} 35. Ra1 {[%emt 0:00:44]} Ra8 {[%emt 0:01:45]} 36. Qf2 {[%emt 0:00:29]} a3 {[%emt 0:01:21] Strongly threatening ...Bxg5.} 37. bxa3 {[%emt 0:00:54]} Bxg5 {[%emt 0:00:31]} ({Weaker is} 37... Rxa3 38. Rxa3 Qxa3 39. Qe3 $19) 38. hxg5 {[%emt 0:00:14]} Rxa3 {[%emt 0:00:07]} 39. Rxa3 {[%emt 0:00:55]} Qxa3 {[%emt 0:00:01]} 40. Qe3 {[%emt 0:00:00]} Qd6 {[%emt 0:00:00]} 41. Ra2 {[%emt 0:13:44]} ({Much weaker is} 41. e7 Re8 42. Qe5 Qd7) 41... Re8 {[%emt 0:02:11]} 42. Re2 {[%emt 0:00:13]} ({Of course not} 42. Ra7+ Re7 43. Rd7 Rxd7 44. exd7 Ne7 $19) 42... Qg3 {[%emt 0:03:27]} 43. Ra2 {[%emt 0:09:56]} Ne7 {[%emt 0:02:46]} 44. Ra7 {[%emt 0:00:35]} Kg8 {[%emt 0:02:19][%cal Oe8b8] And now ...Rb8! would win.} 45. Rd7 {[%emt 0:02:05] [#]} (45. Qe5 $19 Qxe5 46. dxe5) 45... Ra8 $1 {[%emt 0:02:48] ( -> ...Ra1+)} 46. Qc1 {[%emt 0:00:16] [#]} (46. Qf2 Ra1+) 46... Ra2 $1 {[%emt 0:00:09][%csl Ga2][%cal Rg3g2]} 47. Qf1 {[%emt 0:00:17]} Nf5 {[%emt 0:07:49]} 48. Rd8+ {[%emt 0:06:57]} Kg7 {[%emt 0:00:16]} 49. Rd7+ {[%emt 0:00:57]} Kf8 {[%emt 0:00:14]} 50. e7+ {[%emt 0:00:28]} Nxe7 {[%emt 0:02:05]} (50... Ke8 $142 51. Rd8+ Kxe7 52. Rxd5 Ne3 53. Re5+ {[#]} Qxe5 $3 {[%mdl 512]} 54. dxe5 Nxf1 55. Kxf1 Rc2 56. f4 Ke6 57. Kg1 Rxc3 58. Kf1 Rd3 59. Ke2 Rd8 60. f5+ Kxf5 61. g4+ hxg4 62. e6 Kxe6 63. Kf2 c3 64. Kg3 c2 65. Kf2 c1=Q 66. Ke2 Qc2+ 67. Ke3 Qd2+ 68. Ke4 Rd4#) 51. Rd8+ {[%emt 0:00:40]} Kf7 {[%emt 0:00:09] Weighted Error Value: White=0.45/Black=0.16 (very precise)} 0-1

[Event "Croatian 1A League 2022"]
[Site "Porec"]
[Date "2022.09.27"]
[Round "4.11"]
[White "Medancic, Rikard"]
[Black "Ivekovic, Zvonimir"]
[Result "1/2-1/2"]
[ECO "A80"]
[WhiteElo "2120"]
[BlackElo "2380"]
[Annotator "TA"]
[PlyCount "52"]
[EventDate "2022.09.24"]
[EventType "team-tourn"]
[EventCountry "CRO"]
[SourceTitle "playchess.com"]
[Source "ChessBase"]
[SourceQuality "1"]
[TimeControl "40/5400+30:1800+30"]

{[%evp 9,52,49,71,44,69,31,45,2,31,0,0,0,5,-14,0,0,4,0,33,31,29,0,27,24,36,16,20,4,20,0,73,73,75,77,74,84,139,149,150,154,149,138,137,142,135]} 1. d4 {[%emt 0:00:29]} f5 {[%emt 0:00:13]} 2. Bg5 {[%emt 0:00:36]} Nf6 {[%emt 0:01:55]} 3. Bxf6 {[%emt 0:01:51]} exf6 {[%emt 0:00:41]} 4. e3 {[%emt 0:00:06]} Qe7 {[%emt 0:12:56]} 5. Nd2 {[%emt 0:09:00]} Nc6 {[%emt 0:13:54] [#]} 6. c3 $146 {[%emt 0:01:49] A80: Dutch Defence: Unusual White second moves.} ({Predecessor:} 6. Ngf3 d5 7. Be2 g6 8. O-O Bh6 9. c4 Be6 10. Qb3 O-O-O 11. c5 a6 12. Rfe1 g5 {0-1 (40) Larrea,M (2220)-Garello,G (2215) Uruguay 1997}) 6... b6 {[%emt 0:05:49]} 7. Qf3 {[%emt 0:07:07]} g6 {[%emt 0:00:17]} 8. Qg3 {[%emt 0:04:23] White is slightly better.} (8. Bc4 {with more complications.} Bb7 9. Bd5 f4 10. Qxf4 Nb4 11. cxb4 Bxd5 12. Ngf3) 8... Qd6 {[%emt 0:04:06]} 9. Nc4 {[%emt 0:05:05]} Qxg3 {[%emt 0:00:58]} 10. hxg3 {[%emt 0:00:07]} h5 {[%emt 0:09:41]} 11. Bd3 {[%emt 0:01:28][%cal Og3g4]} Ne7 {[%emt 0:04:51]} 12. Ne2 {[%emt 0:03:47]} Bb7 {[%emt 0:00:39]} 13. f3 {[%emt 0:09:29]} O-O-O {[%emt 0:10:43]} 14. Kf2 {[%emt 0:02:20]} Bh6 {[%emt 0:07:53]} 15. Rae1 {[%emt 0:06:23]} Rde8 {[%emt 0:00:22]} 16. Nf4 {[%emt 0:03:33]} Kd8 {[%emt 0:00:08]} 17. a4 {[%emt 0:00:46]} Bxf4 {[%emt 0:01:10]} 18. gxf4 {[%emt 0:07:22]} h4 {[%emt 0:02:20]} 19. g3 {[%emt 0:12:44][%cal Bg2g3,Bg3h4][%mdl 32]} Ba6 {[%emt 0:06:51]} (19... hxg3+ $11 {keeps the balance.} 20. Kxg3 a5) 20. Rxh4 $16 {[%emt 0:04:14]} Rxh4 {[%emt 0:01:50]} 21. gxh4 {[%emt 0:00:06]} d5 {[%emt 0:08:13]} 22. Ne5 {[%emt 0:00:30]} Bb7 {[%emt 0:00:32]} (22... fxe5 $142 23. Bxa6 exf4) 23. Nf7+ {[%emt 0:01:33] White is clearly better.} Kd7 {[%emt 0:00:01] [#] White must now prevent ...Ke6.} 24. h5 $1 {[%emt 0:00:25] Threatens to win with hxg6. White has more active pieces.} Ke6 {[%emt 0:02:13]} 25. hxg6 {[%emt 0:00:37]} Nxg6 {[%emt 0:00:54]} 26. Nh6 {[%emt 0:00:08]} Ne7 {[%emt 0:00:01] Weighted Error Value: White=0.13 (very precise) /Black=0.19 (very precise)} 1/2-1/2

[Event "Croatian 1A League 2022"]
[Site "Porec"]
[Date "2022.09.27"]
[Round "4.12"]
[White "Boric, Muhamed"]
[Black "Mihalic, Goran"]
[Result "1-0"]
[ECO "D03"]
[WhiteElo "2356"]
[BlackElo "2023"]
[Annotator "TA"]
[PlyCount "65"]
[EventDate "2022.09.24"]
[EventType "team-tourn"]
[EventCountry "CRO"]
[SourceTitle "playchess.com"]
[Source "ChessBase"]
[SourceQuality "1"]
[TimeControl "40/5400+30:1800+30"]

{[%evp 16,65,0,0,3,0,0,0,12,0,0,0,15,10,58,64,61,71,72,69,72,70,83,59,57,59,73,70,88,68,146,136,139,141,193,91,202,226,301,247,239,252,214,219,261,210,207,196,160,158,597,588]} 1. d4 {[%emt 0:00:16]} Nf6 {[%emt 0:00:11]} 2. Nf3 {[%emt 0:00:37]} g6 {[%emt 0:00:19]} 3. Bg5 {[%emt 0:01:58]} Bg7 {[%emt 0:00:10]} 4. Nbd2 {[%emt 0:00:08]} d5 {[%emt 0:01:39]} 5. e3 {[%emt 0:01:25]} O-O {[%emt 0:00:52]} 6. Bd3 {[%emt 0:01:20]} Nbd7 {[%emt 0:01:26]} 7. O-O {[%emt 0:03:39]} c5 {[%emt 0:01:00]} 8. c3 {[%emt 0:00:33]} b6 {[%emt 0:04:46]} 9. a4 {[%emt 0:06:03]} Bb7 {[%emt 0:07:24] D03: 1 d4 d5 2 Nf3 Nf6 3 Bg5, including Torre Attack with early ...d5.} 10. Qe2 {[%emt 0:08:38]} Ne4 {[%emt 0:06:59]} 11. Bh4 {[%emt 0:00:17]} h6 {[%emt 0:04:27] The position is equal.} 12. Rfd1 {[%emt 0:15:23] [#]} g5 $146 {[%emt 0:14:30] [#] aiming for ...Nxd2.} ({Predecessor:} 12... Qe8 13. Ba6 Bxa6 14. Qxa6 g5 15. Bg3 Nxg3 16. hxg3 e6 17. Qe2 f5 18. a5 c4 19. axb6 axb6 {1-0 (46) Studenetsky,A-Berggreen,A ICCF corr 1974}) 13. Bg3 {[%emt 0:00:48]} Nxg3 {[%emt 0:10:54]} 14. hxg3 {[%emt 0:00:27]} c4 {[%emt 0:01:49]} (14... f5 $11 {should be considered.}) 15. Bc2 $14 {[%emt 0:00:19]} f5 {[%emt 0:01:35]} 16. b3 {[%emt 0:00:07]} cxb3 {[%emt 0:12:25]} 17. Bxb3 {[%emt 0:00:26]} e6 {[%emt 0:01:10]} 18. a5 {[%emt 0:01:49]} bxa5 {[%emt 0:03:49]} 19. Qb5 {[%emt 0:00:32][%csl LRa5,LRb7] White is more active.} Nb6 {[%emt 0:07:12][%cal Oa5a4]} 20. Qxa5 {[%emt 0:02:23]} g4 {[%emt 0:02:32]} 21. Nh4 {[%emt 0:00:51]} Kh7 {[%emt 0:00:20] Inhibits Ng6.} 22. c4 {[%emt 0:00:41]} Nxc4 {[%emt 0:01:10]} ({Black should play} 22... Bf6 $14) 23. Nxc4 $16 {[%emt 0:01:10]} dxc4 {[%emt 0:00:14]} 24. Bxc4 {[%emt 0:00:21]} Qe7 {[%emt 0:02:35]} (24... Qd6 $16 25. Qa3 Qxa3 26. Rxa3 Rfe8) 25. Qa3 {[%emt 0:00:24]} (25. Qa2 $18) 25... Qd7 {[%emt 0:01:05]} (25... Qxa3 $16 26. Rxa3 Rfe8) 26. Qb3 $18 {[%emt 0:01:05]} Rfe8 {[%emt 0:00:23]} 27. Bb5 {[%emt 0:07:16]} Bc6 {[%emt 0:00:35]} 28. Bxc6 {[%emt 0:00:10]} Qxc6 {[%emt 0:00:01]} 29. d5 {[%emt 0:00:15]} Qd6 {[%emt 0:02:35]} 30. dxe6 {[%emt 0:04:24]} Qxe6 {[%emt 0:03:55]} 31. Qxe6 {[%emt 0:00:17]} Rxe6 {[%emt 0:00:00]} 32. Rd7 {[%emt 0:00:13]} Rd6 $2 {[%emt 0:04:02] [#]} (32... a5 $16 33. Nxf5 Rg6) 33. Rxg7+ {[%emt 0:00:19] Weighted Error Value: White=0.14 (very precise) /Black=0.49} ({Weaker is} 33. Rxd6 Bxa1 34. Ra6 (34. Nxf5 a5 $16) 34... Bc3 35. Nxf5 h5 $18) 1-0

[Event "Croatian 1A League 2022"]
[Site "Porec"]
[Date "2022.09.27"]
[Round "4.13"]
[White "Donchenko, Alexander"]
[Black "Kozul, Zdenko"]
[Result "1-0"]
[ECO "E94"]
[WhiteElo "2639"]
[BlackElo "2549"]
[Annotator "TA"]
[PlyCount "54"]
[EventDate "2022.09.24"]
[EventType "team-tourn"]
[EventCountry "CRO"]
[SourceTitle "playchess.com"]
[Source "ChessBase"]
[SourceQuality "1"]
[TimeControl "40/5400+30:1800+30"]

{[%evp 16,54,65,56,58,64,62,68,81,79,134,145,132,125,145,131,131,125,117,120,122,89,98,85,239,205,438,427,550,568,560,510,508,517,517,506,501,485,462,432,475]} 1. d4 {[%emt 0:00:04]} Nf6 {[%emt 0:00:23]} 2. c4 {[%emt 0:00:24]} g6 {[%emt 0:00:08]} 3. Nc3 {[%emt 0:00:17]} Bg7 {[%emt 0:00:40]} 4. e4 {[%emt 0:00:18]} d6 {[%emt 0:00:07]} 5. Nf3 {[%emt 0:00:26]} O-O {[%emt 0:00:17]} 6. Be2 {[%emt 0:00:12]} Na6 {[%emt 0:05:08]} 7. O-O {[%emt 0:00:39]} e5 {[%emt 0:00:08]} 8. Be3 {[%emt 0:01:05]} c6 {[%emt 0:00:31] is recently more successful than 8...Ng4.} 9. Re1 {[%emt 0:04:44]} exd4 {[%emt 0:10:01] E94: King's Indian: Classical: 6 Be2 e5 7 0-0: Various Black 7th moves.} 10. Nxd4 {[%emt 0:00:37]} ({Reject} 10. Bxd4 Re8 $11) (10. Qxd4 Nd5 $1 11. Qd2 Nxe3 12. Qxe3 Qb6 $15) 10... Nc5 {[%emt 0:06:33]} 11. f3 {[%emt 0:02:00] [#]} Nh5 $146 {[%emt 0:07:18] White is slightly better.} ({Predecessor:} 11... a5 12. Qd2 Nfd7 13. Rad1 a4 14. Bf1 Re8 15. Nde2 Bf8 16. Kh1 Qc7 17. Nc1 Nb6 {½-½ (83) Mohammad,N (2421)-Nitish,B (2294) Mumbai 2020}) 12. Qd2 {[%emt 0:08:00]} f5 {[%emt 0:01:19] [#]} (12... Qe7 $142) 13. exf5 $1 $16 {[%emt 0:01:58]} gxf5 {[%emt 0:00:06]} 14. Rad1 {[%emt 0:01:15][%cal Od4c6]} Qc7 {[%emt 0:17:59]} 15. Bf1 {[%emt 0:05:45]} Be5 {[%emt 0:10:39]} 16. Bh6 {[%emt 0:06:43]} Ng7 {[%emt 0:06:51]} 17. f4 {[%emt 0:10:48]} Bf6 {[%emt 0:00:38]} 18. Re3 {[%emt 0:02:56]} a5 {[%emt 0:02:54]} 19. Rg3 $36 {[%emt 0:03:04][%cal Od4b5][%mdl 2048] And now Ndb5! would win. Keeping Black busy. White is much more active. The black rooks are badly placed.} a4 $2 {[%emt 0:11:31] [#] Loses the game.} (19... Ne4 $16 20. Nxe4 fxe4) 20. Ndb5 $1 $18 {[%emt 0:11:53]} Qb6 {[%emt 0:08:28]} (20... cxb5 $2 21. Nd5 (21. Nxb5 Qe7 $17) 21... Qd8 22. Nxf6+ Rxf6 23. Rxg7+ Kh8 24. Qd4 $18) (20... Qe7 {keeps fighting.} 21. Nxd6 b6) 21. Qf2 {[%emt 0:01:46] White is clearly winning.} Be6 {[%emt 0:04:15]} (21... cxb5 $2 22. Nd5 Qd8 23. Nxf6+ Rxf6 24. Rxg7+ Kh8 25. Qxc5 Rxh6 26. Rc7 $18) 22. Rxd6 {[%emt 0:02:41]} Rae8 {[%emt 0:02:16]} 23. Nd4 {[%emt 0:12:06]} Qa5 {[%emt 0:01:21]} 24. Qe3 {[%emt 0:08:30]} Qc7 {[%emt 0:02:10]} 25. Bxg7 {[%emt 0:03:18]} Bxg7 {[%emt 0:00:19]} 26. Nxe6 {[%emt 0:00:05]} Nxe6 {[%emt 0:00:56]} 27. Rxe6 {[%emt 0:00:09]} Qd7 {[%emt 0:00:31] Weighted Error Value: White=0.10 (very precise) /Black=0.47} 1-0

[Event "Croatian 1A League 2022"]
[Site "Porec"]
[Date "2022.09.27"]
[Round "4.14"]
[White "Stevic, Hrvoje"]
[Black "Livaic, Leon"]
[Result "1/2-1/2"]
[ECO "A38"]
[WhiteElo "2565"]
[BlackElo "2565"]
[Annotator "TA"]
[PlyCount "26"]
[EventDate "2022.09.24"]
[EventType "team-tourn"]
[EventCountry "CRO"]
[SourceTitle "playchess.com"]
[Source "ChessBase"]
[SourceQuality "1"]
[TimeControl "40/5400+30:1800+30"]

{[%evp 23,24,0,7]} 1. c4 {[%emt 0:00:03]} c5 {[%emt 0:00:04]} 2. Nc3 {[%emt 0:00:06]} Nc6 {[%emt 0:00:05]} 3. g3 {[%emt 0:00:08]} g6 {[%emt 0:00:06]} 4. Bg2 {[%emt 0:00:05]} Bg7 {[%emt 0:00:04]} 5. Nf3 {[%emt 0:00:06]} Nf6 {[%emt 0:00:05]} 6. O-O {[%emt 0:00:04]} O-O {[%emt 0:00:04]} 7. d3 {[%emt 0:00:03]} d6 {[%emt 0:00:04]} 8. a3 {[%emt 0:00:04]} a6 {[%emt 0:00:05]} 9. Rb1 {[%emt 0:00:05]} Rb8 {[%emt 0:00:04]} 10. b4 {[%emt 0:00:02]} cxb4 {[%emt 0:00:06]} 11. axb4 {[%emt 0:00:05]} b5 {[%emt 0:00:04]} 12. cxb5 {[%emt 0:00:04]} axb5 {[%emt 0:00:02] [#]} {Predecessor:} 13. Bd2 $146 {A38: Symmetrical English vs ...g6: 4 Bg2 Bg7 5 Nf3 Nf6.} Bd7 {½-½ (13) Brkic,A (2573)-Stevic,H (2569) Schwarzach 2019} 1/2-1/2